fUSD/lending_fUSD_20260622
["ID","MTS","AMOUNT","RATE_DAILY","PERIOD"]
[426080806,1782139844000,-981.26865284,0.0002,2]
[426080813,1782139844000,-571.0,0.0002,2]
[426080817,1782139844000,-10000.0,0.0002,2]
[426080807,1782139844000,-163.94697071,0.0002,14]
[426080823,1782139844000,-188.0,0.0002,2]
[426080819,1782139844000,-214.37,0.0002,2]
[426080821,1782139844000,-226.421081,0.0002,2]
[426080820,1782139844000,-59404.0,0.0002,2]
[426080818,1782139844000,-1971.0,0.0002,2]
[426080824,1782139844000,-159.0,0.0002,2]
[426080814,1782139844000,-400.0,0.0002,2]
[426080827,1782139844000,-501.0,0.0002,2]
[426080822,1782139844000,-227.0,0.0002,2]
[426080811,1782139844000,-170.0,0.0002,2]
[426080804,1782139844000,-1560.54698761,0.0002,2]
[426080808,1782139844000,-313.33396714,0.0002,2]
[426080826,1782139844000,-1610.0,0.0002,2]
[426080789,1782139844000,-350.0,0.00019483,2]
[426080792,1782139844000,-3620.0,0.00019623,2]
[426080793,1782139844000,-8380.22662504,0.0001964,2]
[426080790,1782139844000,-4110.03471729,0.000195,2]
[426080791,1782139844000,-164.29860884,0.00019504,2]
[426080794,1782139844000,-4110.03471729,0.000197,2]
[426080795,1782139844000,-287.15685355,0.00019776,2]
[426080796,1782139844000,-1934.38338736,0.00019811,2]
[426080797,1782139844000,-4110.03471729,0.000199,2]
[426080801,1782139844000,-300.0,0.00019999,2]
[426080800,1782139844000,-17710.44466581,0.0001995,15]
[426080798,1782139844000,-184.51424214,0.000199,2]
[426080799,1782139844000,-300.0,0.00019949,2]
[426080802,1782139844000,-3024.77458829,0.00019999,2]
[426080803,1782139844000,-5301.80682412,0.0002,2]
[426080805,1782139844000,-179.5694719,0.0002,2]
[426080815,1782139844000,-169.14951849,0.0002,2]
[426080828,1782139844000,-156.0,0.0002,2]
[426080825,1782139844000,-1170.0,0.0002,2]
[426080829,1782139844000,-166.0,0.0002,2]
[426080855,1782139844000,-151.0,0.00020359,2]
[426080849,1782139844000,-151.0,0.00020359,2]
[426080851,1782139844000,-200.0,0.00020359,2]
[426080854,1782139844000,-1148.61238259,0.00020359,2]
[426080857,1782139844000,-1191.11104074,0.00020359,2]
[426080856,1782139844000,-578.20924308,0.00020359,2]
[426080860,1782139844000,-151.0,0.00020359,2]
[426080858,1782139844000,-1235.18214925,0.00020359,2]
[426080853,1782139844000,-174.61919141,0.00020359,2]
[426080859,1782139844000,-1280.88388877,0.00020359,2]
[426080862,1782139844000,-151.0,0.00020359,2]
[426080861,1782139844000,-1328.27659266,0.00020359,2]
[426080865,1782139844000,-157.23322127,0.00020359,2]
[426080867,1782139844000,-1428.38747117,0.00020359,2]
[426080866,1782139844000,-151.0,0.00020359,2]
[426080869,1782139844000,-500.0,0.00020359,2]
[426080830,1782139844000,-1664.17,0.0002,2]
[426080868,1782139844000,-151.0,0.00020359,2]
[426080864,1782139844000,-1377.42282658,0.00020359,2]
[426080847,1782139844000,-151.0,0.00020359,2]
[426080863,1782139844000,-327.98278615,0.00020359,2]
[426080852,1782139844000,-151.0,0.00020359,2]
[426080832,1782139844000,-869.0,0.0002,2]
[426080850,1782139844000,-1107.63007,0.00020359,2]
[426080831,1782139844000,-2000.0,0.0002,7]
[426080834,1782139844000,-1446.97132594,0.00020031,2]
[426080833,1782139844000,-5529.0,0.0002,3]
[426080839,1782139844000,-500.0,0.00020359,2]
[426080837,1782139844000,-785.0,0.00020274,2]
[426080835,1782139844000,-251.0,0.00020136,2]
[426080836,1782139844000,-752.4937536,0.000202,2]
[426080838,1782139844000,-300.0,0.00020358,2]
[426080840,1782139844000,-540.50544414,0.00020359,2]
[426080842,1782139844000,-151.0,0.00020359,2]
[426080846,1782139844000,-1030.0,0.00020359,2]
[426080841,1782139844000,-158.27328414,0.00020359,2]
[426080845,1782139844000,-151.0,0.00020359,2]
[426080843,1782139844000,-218.80238326,0.00020359,2]
[426080844,1782139844000,-412.43236871,0.00020359,2]
[426080848,1782139844000,-1068.11,0.00020359,2]
[426080908,1782139845000,-500.0,0.00020359,2]
[426080909,1782139845000,-151.0,0.00020359,2]
[426080907,1782139845000,-1910.18787185,0.00020359,2]
[426080900,1782139845000,-695.39793187,0.00020359,2]
[426080903,1782139845000,-151.0,0.00020359,2]
[426080904,1782139845000,-1842.0326633,0.00020359,2]
[426080902,1782139845000,-1776.30922209,0.00020359,2]
[426080914,1782139845000,-500.0,0.00020359,2]
[426080901,1782139845000,-152.0,0.00020359,2]
[426080906,1782139845000,-500.0,0.00020359,2]
[426080912,1782139845000,-500.0,0.00020359,2]
[426080919,1782139845000,-500.0,0.00020359,2]
[426080910,1782139845000,-152.0,0.00020359,2]
[426080911,1782139845000,-151.0,0.00020359,2]
[426080916,1782139845000,-2054.15682156,0.00020359,2]
[426080917,1782139845000,-152.0,0.00020359,2]
[426080918,1782139845000,-151.0,0.00020359,2]
[426080913,1782139845000,-1980.8648231,0.00020359,2]
[426080921,1782139845000,-151.0,0.00020359,2]
[426080924,1782139845000,-500.0,0.00020359,2]
[426080925,1782139845000,-500.0,0.00020359,2]
[426080920,1782139845000,-500.0,0.00020359,2]
[426080922,1782139845000,-152.0,0.00020359,2]
[426080898,1782139845000,-500.0,0.00020359,2]
[426080915,1782139845000,-151.0,0.00020359,2]
[426080899,1782139845000,-500.0,0.00020359,2]
[426080888,1782139845000,-1651.81367706,0.00020359,2]
[426080894,1782139845000,-1712.93078311,0.00020359,2]
[426080926,1782139845000,-151.0,0.00020359,2]
[426080870,1782139845000,-151.0,0.00020359,2]
[426080871,1782139845000,-151.0,0.00020359,2]
[426080873,1782139845000,-1481.2378076,0.00020359,2]
[426080872,1782139845000,-151.0,0.00020359,2]
[426080874,1782139845000,-500.0,0.00020359,2]
[426080875,1782139845000,-201.93286098,0.00020359,2]
[426080876,1782139845000,-151.0,0.00020359,2]
[426080877,1782139845000,-500.0,0.00020359,2]
[426080878,1782139845000,-1536.04360648,0.00020359,2]
[426080879,1782139845000,-500.0,0.00020359,2]
[426080881,1782139845000,-151.0,0.00020359,2]
[426080897,1782139845000,-201.93286098,0.00020359,2]
[426080886,1782139845000,-217.67800491,0.00020359,2]
[426080882,1782139845000,-1592.87721992,0.00020359,2]
[426080885,1782139845000,-151.0,0.00020359,2]
[426080880,1782139845000,-151.0,0.00020359,2]
[426080883,1782139845000,-500.0,0.00020359,2]
[426080887,1782139845000,-906.04900202,0.00020359,2]
[426080890,1782139845000,-151.0,0.00020359,2]
[426080889,1782139845000,-151.0,0.00020359,2]
[426080891,1782139845000,-500.0,0.00020359,2]
[426080893,1782139845000,-151.0,0.00020359,2]
[426080896,1782139845000,-2005.9555727,0.00020359,2]
[426080895,1782139845000,-151.0,0.00020359,2]
[426080892,1782139845000,-500.0,0.00020359,2]
[426080884,1782139845000,-500.0,0.00020359,2]
[426080923,1782139845000,-151.0,0.00020359,2]
[426080905,1782139845000,-151.0,0.00020359,2]
[426080931,1782139845000,-151.0,0.00020359,2]
[426080964,1782139845000,-785.0,0.00020606,2]
[426080958,1782139845000,-540.50544414,0.00020579,2]
[426080967,1782139845000,-151.0,0.00020633,2]
[426080970,1782139845000,-540.50544414,0.00020689,2]
[426080962,1782139845000,-620.0,0.000206,2]
[426080963,1782139845000,-1000.0,0.000206,2]
[426080969,1782139845000,-151.0,0.00020634,2]
[426080961,1782139845000,-632.0,0.000206,2]
[426080966,1782139845000,-501.0,0.00020625,2]
[426080968,1782139845000,-540.50544414,0.00020634,2]
[426080960,1782139845000,-752.4937536,0.000206,2]
[426080972,1782139845000,-5529.0,0.000207,5]
[426080973,1782139845000,-540.50544414,0.00020744,2]
[426080974,1782139845000,-151.0,0.00020744,2]
[426080978,1782139845000,-251.0,0.00020821,2]
[426080981,1782139845000,-540.50544414,0.00020854,2]
[426080982,1782139845000,-151.0,0.00020854,2]
[426080976,1782139845000,-151.0,0.00020799,2]
[426080977,1782139845000,-752.4937536,0.000208,2]
[426080975,1782139845000,-540.50544414,0.00020799,2]
[426080983,1782139845000,-1886.0,0.000209,2]
[426080980,1782139845000,-500.0,0.00020839,2]
[426080979,1782139845000,-162.500386,0.00020821,2]
[426080985,1782139845000,-158.27328414,0.00020907,2]
[426080984,1782139845000,-179.77,0.000209,2]
[426080971,1782139845000,-151.0,0.00020689,2]
[426080959,1782139845000,-151.0,0.00020579,2]
[426080927,1782139845000,-500.0,0.00020359,2]
[426080945,1782139845000,-152.0,0.00020359,2]
[426080956,1782139845000,-540.50544414,0.00020524,2]
[426080930,1782139845000,-500.0,0.00020359,2]
[426080929,1782139845000,-151.0,0.00020359,2]
[426080928,1782139845000,-152.0,0.00020359,2]
[426080933,1782139845000,-500.0,0.00020359,2]
[426080936,1782139845000,-151.0,0.00020359,2]
[426080943,1782139845000,-152.0,0.00020359,2]
[426080932,1782139845000,-151.0,0.00020359,2]
[426080935,1782139845000,-500.0,0.00020359,2]
[426080942,1782139845000,-152.0,0.00020359,2]
[426080940,1782139845000,-500.0,0.00020359,2]
[426080937,1782139845000,-500.0,0.00020359,2]
[426080941,1782139845000,-151.0,0.00020359,2]
[426080934,1782139845000,-152.0,0.00020359,2]
[426080938,1782139845000,-151.0,0.00020359,2]
[426080939,1782139845000,-152.0,0.00020359,2]
[426080953,1782139845000,-540.50544414,0.00020469,2]
[426080952,1782139845000,-193.0,0.00020421,2]
[426080948,1782139845000,-714.6,0.00020381,2]
[426080954,1782139845000,-151.0,0.00020469,2]
[426080955,1782139845000,-434.0,0.00020478,2]
[426080947,1782139845000,-152.0,0.00020359,2]
[426080957,1782139845000,-151.0,0.00020524,2]
[426080950,1782139845000,-540.50544414,0.00020414,2]
[426080949,1782139845000,-752.4937536,0.000204,2]
[426080944,1782139845000,-152.0,0.00020359,2]
[426080951,1782139845000,-151.0,0.00020414,2]
[426081028,1782139846000,-350.0,0.00021253,2]
[426081024,1782139846000,-1689.47890839,0.000212,2]
[426081023,1782139846000,-350.0,0.00021199,3]
[426081027,1782139846000,-501.0,0.0002125,3]
[426081013,1782139846000,-227.0,0.00021,2]
[426081022,1782139846000,-151.0,0.00021181,2]
[426081025,1782139846000,-620.45,0.000212,2]
[426081019,1782139846000,-166.0,0.00021,2]
[426081017,1782139846000,-1610.0,0.00021,2]
[426081020,1782139846000,-869.0,0.00021,2]
[426081021,1782139846000,-213.99607079,0.00021181,2]
[426081026,1782139846000,-193.0,0.00021243,2]
[426081039,1782139846000,-151.0,0.00021455,2]
[426081031,1782139846000,-184.87695719,0.00021273,2]
[426081030,1782139846000,-184.87695719,0.00021273,2]
[426081041,1782139846000,-200.0,0.00021455,2]
[426081032,1782139846000,-179.02016704,0.00021273,2]
[426081034,1782139846000,-2025.84,0.00021273,2]
[426081033,1782139846000,-179.02016704,0.00021273,2]
[426081036,1782139846000,-1689.47890839,0.000214,2]
[426081040,1782139846000,-412.43236871,0.00021455,2]
[426081035,1782139846000,-778.0,0.00021357,7]
[426081037,1782139846000,-825.0,0.00021428,2]
[426081038,1782139846000,-158.27328422,0.00021455,2]
[426081016,1782139846000,-1170.0,0.00021,2]
[426081029,1782139846000,-785.0,0.00021271,2]
[426081015,1782139846000,-166.15358353,0.00021,2]
[426081003,1782139846000,-170.0,0.00021,2]
[426081012,1782139846000,-286.85166634,0.00021,2]
[426081042,1782139846000,-187.78006524,0.00021455,2]
[426080986,1782139846000,-151.0,0.00020907,2]
[426080990,1782139846000,-157.23322127,0.00020907,2]
[426080993,1782139846000,-151.0,0.00020907,2]
[426080994,1782139846000,-906.04900202,0.00020907,2]
[426080988,1782139846000,-200.0,0.00020907,2]
[426080989,1782139846000,-181.08010149,0.00020907,2]
[426080991,1782139846000,-151.0,0.00020907,2]
[426080987,1782139846000,-412.43236871,0.00020907,2]
[426080992,1782139846000,-169.93046447,0.00020907,2]
[426080996,1782139846000,-209.40437684,0.00020907,2]
[426081000,1782139846000,-540.5054443,0.00020964,2]
[426081014,1782139846000,-188.0,0.00021,2]
[426080998,1782139846000,-151.0,0.00020909,2]
[426081005,1782139846000,-571.0,0.00021,2]
[426081002,1782139846000,-2032.6213145,0.00021,2]
[426080999,1782139846000,-785.0,0.00020939,2]
[426080997,1782139846000,-540.50544414,0.00020909,2]
[426081004,1782139846000,-173.0,0.00021,2]
[426081001,1782139846000,-151.0,0.00020964,2]
[426081008,1782139846000,-15000.0,0.00021,2]
[426081018,1782139846000,-156.0,0.00021,2]
[426081007,1782139846000,-1689.47890839,0.00021,2]
[426081010,1782139846000,-15000.0,0.00021,2]
[426081011,1782139846000,-6111.0,0.00021,2]
[426081009,1782139846000,-6111.0,0.00021,2]
[426081006,1782139846000,-400.0,0.00021,2]
[426080995,1782139846000,-2080.17592889,0.00020907,2]
[426081046,1782139846000,-151.0,0.00021455,2]
[426081044,1782139846000,-157.23322127,0.00021455,2]
[426081098,1782139846000,-1689.47890839,0.000219,2]
[426081103,1782139846000,-800.0,0.00021918,8]
[426081105,1782139846000,-800.0,0.00021918,8]
[426081112,1782139846000,-800.0,0.00021918,8]
[426081107,1782139846000,-800.0,0.00021918,8]
[426081109,1782139846000,-800.0,0.00021918,8]
[426081101,1782139846000,-5000.0,0.00021918,2]
[426081115,1782139846000,-800.0,0.00021918,15]
[426081116,1782139846000,-800.0,0.00021918,15]
[426081113,1782139846000,-800.0,0.00021918,15]
[426081117,1782139846000,-800.0,0.00021918,15]
[426081114,1782139846000,-800.0,0.00021918,15]
[426081096,1782139846000,-501.0,0.00021875,3]
[426081118,1782139846000,-171.65,0.00021918,2]
[426081130,1782139846000,-188.0,0.00022,2]
[426081123,1782139846000,-450.0,0.00022,2]
[426081124,1782139846000,-170.0,0.00022,2]
[426081122,1782139846000,-244.77740706,0.00022,3]
[426081119,1782139846000,-785.0,0.00021936,2]
[426081125,1782139846000,-173.0,0.00022,2]
[426081129,1782139846000,-227.0,0.00022,2]
[426081127,1782139846000,-400.0,0.00022,2]
[426081121,1782139846000,-410.0,0.00022,10]
[426081126,1782139846000,-571.0,0.00022,2]
[426081128,1782139846000,-8000.0,0.00022,2]
[426081053,1782139846000,-330.5195434,0.00021464,2]
[426081120,1782139846000,-199.0,0.00021999,10]
[426081092,1782139846000,-161.07741532,0.0002185,2]
[426081131,1782139846000,-200.0,0.00022,2]
[426081094,1782139846000,-2142.9787457,0.00021874,2]
[426081090,1782139846000,-161.07741532,0.0002185,2]
[426081056,1782139846000,-3561.0,0.00021542,2]
[426081057,1782139846000,-1276.0,0.00021542,2]
[426081051,1782139846000,-2157.14243826,0.00021455,2]
[426081048,1782139846000,-151.0,0.00021455,2]
[426081054,1782139846000,-500.0,0.00021465,2]
[426081052,1782139846000,-217.15233878,0.00021455,2]
[426081055,1782139846000,-251.0,0.00021506,2]
[426081059,1782139846000,-1360.0,0.00021542,2]
[426081067,1782139846000,-150.0,0.00021589,2]
[426081071,1782139846000,-1689.47890839,0.000216,2]
[426081069,1782139846000,-150.196,0.00021589,2]
[426081065,1782139846000,-195.675,0.00021589,2]
[426081050,1782139846000,-906.04900202,0.00021455,2]
[426081061,1782139846000,-150.0,0.00021542,2]
[426081088,1782139846000,-483.21,0.0002185,2]
[426081086,1782139846000,-434.0,0.00021848,2]
[426081082,1782139846000,-316.1089606,0.0002179,2]
[426081084,1782139846000,-1886.0,0.000218,2]
[426081060,1782139846000,-150.0,0.00021542,2]
[426081080,1782139846000,-151.0,0.00021729,2]
[426081078,1782139846000,-1664.17,0.0002162,2]
[426081076,1782139846000,-350.0,0.00021614,2]
[426081062,1782139846000,-150.0,0.00021542,2]
[426081064,1782139846000,-154.63265559,0.00021588,2]
[426081063,1782139846000,-386.58163898,0.00021588,2]
[426081058,1782139846000,-1229.0,0.00021542,2]
[426081074,1782139846000,-785.0,0.00021603,2]
[426081170,1782139847000,-151.0,0.00022551,2]
[426081171,1782139847000,-412.43236871,0.00022551,2]
[426081174,1782139847000,-157.23322127,0.00022551,2]
[426081167,1782139847000,-498.01477409,0.0002254,2]
[426081162,1782139847000,-555.4,0.00022466,2]
[426081168,1782139847000,-199.20590963,0.0002254,2]
[426081164,1782139847000,-501.0,0.000225,4]
[426081175,1782139847000,-151.0,0.00022551,2]
[426081165,1782139847000,-350.0,0.0002251,2]
[426081163,1782139847000,-1723.43,0.00022466,2]
[426081166,1782139847000,-192.29421423,0.00022527,2]
[426081169,1782139847000,-150.0,0.0002254,2]
[426081179,1782139847000,-233.5188934,0.00022551,2]
[426081173,1782139847000,-200.0,0.00022551,2]
[426081176,1782139847000,-151.0,0.00022551,2]
[426081180,1782139847000,-785.0,0.000226,2]
[426081178,1782139847000,-2319.72410669,0.00022551,2]
[426081177,1782139847000,-906.04900202,0.00022551,2]
[426081182,1782139847000,-200.0,0.00022667,2]
[426081183,1782139847000,-500.0,0.00022772,2]
[426081187,1782139847000,-350.0,0.00022819,4]
[426081184,1782139847000,-319.1327312,0.0002279,2]
[426081181,1782139847000,-200.0,0.00022667,2]
[426081185,1782139847000,-6423.6580721,0.00022796,2]
[426081160,1782139847000,-200.0,0.00022442,2]
[426081172,1782139847000,-201.93286098,0.00022551,2]
[426081161,1782139847000,-782.12,0.00022466,2]
[426081146,1782139847000,-151.0,0.00022003,2]
[426081158,1782139847000,-714.6,0.00022353,2]
[426081186,1782139847000,-620.45,0.000228,7]
[426081133,1782139847000,-1610.0,0.00022,2]
[426081137,1782139847000,-2475.39,0.00022,2]
[426081135,1782139847000,-166.0,0.00022,2]
[426081134,1782139847000,-156.0,0.00022,2]
[426081132,1782139847000,-1170.0,0.00022,2]
[426081139,1782139847000,-869.0,0.00022,2]
[426081136,1782139847000,-150.0,0.00022,2]
[426081140,1782139847000,-151.0,0.00022003,2]
[426081138,1782139847000,-200.0,0.00022,2]
[426081141,1782139847000,-412.43236871,0.00022003,2]
[426081143,1782139847000,-200.0,0.00022003,2]
[426081159,1782139847000,-200.0,0.00022442,2]
[426081142,1782139847000,-194.72792766,0.00022003,2]
[426081149,1782139847000,-225.18697532,0.00022003,2]
[426081152,1782139847000,-200.0,0.0002222,2]
[426081150,1782139847000,-500.0,0.00022108,2]
[426081147,1782139847000,-906.04900202,0.00022003,2]
[426081151,1782139847000,-251.0,0.00022191,2]
[426081148,1782139847000,-2236.95670847,0.00022003,2]
[426081145,1782139847000,-151.0,0.00022003,2]
[426081153,1782139847000,-200.0,0.0002222,2]
[426081155,1782139847000,-500.0,0.00022271,2]
[426081154,1782139847000,-785.0,0.00022268,2]
[426081156,1782139847000,-151.0,0.00022277,2]
[426081157,1782139847000,-350.0,0.00022281,2]
[426081144,1782139847000,-157.23322127,0.00022003,2]
[426081189,1782139847000,-200.0,0.00022893,2]
[426081220,1782139847000,-242.15909246,0.00023099,2]
[426081199,1782139847000,-188.0,0.00023,2]
[426081242,1782139847000,-412.43236871,0.00023647,2]
[426081221,1782139847000,-236.31465493,0.00023113,2]
[426081223,1782139847000,-190.41909876,0.00023118,2]
[426081226,1782139847000,-1664.17,0.00023241,7]
[426081224,1782139847000,-962.41,0.00023118,2]
[426081225,1782139847000,-501.0,0.00023125,5]
[426081228,1782139847000,-153.91102008,0.00023246,2]
[426081227,1782139847000,-461.73306027,0.00023246,2]
[426081229,1782139847000,-150.0,0.0002326,21]
[426081232,1782139847000,-350.0,0.00023334,2]
[426081231,1782139847000,-252.0,0.00023288,2]
[426081233,1782139847000,-151.0,0.00023373,2]
[426081235,1782139847000,-191.35,0.00023425,2]
[426081246,1782139847000,-906.04900202,0.00023647,2]
[426081245,1782139847000,-151.0,0.00023647,2]
[426081236,1782139847000,-499.45360619,0.00023455,2]
[426081234,1782139847000,-461.73306027,0.00023386,2]
[426081237,1782139847000,-69984.4436684,0.00023462,2]
[426081239,1782139847000,-461.73306027,0.00023525,7]
[426081238,1782139847000,-350.0,0.00023505,2]
[426081240,1782139847000,-785.0,0.00023598,2]
[426081241,1782139847000,-151.0,0.00023647,2]
[426081243,1782139847000,-217.15233878,0.00023647,2]
[426081244,1782139847000,-200.0,0.00023647,2]
[426081188,1782139847000,-151.0,0.00022825,2]
[426081214,1782139847000,-200.0,0.00023099,2]
[426081218,1782139847000,-906.04900202,0.00023099,2]
[426081230,1782139847000,-785.0,0.00023265,2]
[426081213,1782139847000,-209.40437684,0.00023099,2]
[426081216,1782139847000,-151.0,0.00023099,2]
[426081190,1782139847000,-200.0,0.00022893,2]
[426081191,1782139847000,-785.0,0.00022933,2]
[426081193,1782139847000,-173.0,0.00023,2]
[426081195,1782139847000,-400.0,0.00023,2]
[426081194,1782139847000,-571.0,0.00023,2]
[426081196,1782139847000,-15000.0,0.00023,2]
[426081198,1782139847000,-227.0,0.00023,2]
[426081197,1782139847000,-500.0,0.00023,3]
[426081200,1782139847000,-1170.0,0.00023,2]
[426081202,1782139847000,-500.0,0.00023,3]
[426081203,1782139847000,-156.0,0.00023,2]
[426081201,1782139847000,-1610.0,0.00023,2]
[426081192,1782139847000,-170.0,0.00023,2]
[426081217,1782139847000,-151.0,0.00023099,2]
[426081209,1782139847000,-599.60298507,0.00023098,2]
[426081215,1782139847000,-157.23322135,0.00023099,2]
[426081219,1782139847000,-2405.55389863,0.00023099,2]
[426081211,1782139847000,-151.0,0.00023099,2]
[426081212,1782139847000,-412.43236871,0.00023099,2]
[426081222,1782139847000,-476.04774691,0.00023118,2]
[426081204,1782139847000,-166.0,0.00023,2]
[426081208,1782139847000,-350.0,0.00023074,2]
[426081206,1782139847000,-206.0,0.00023009,2]
[426081207,1782139847000,-350.0,0.00023063,2]
[426081205,1782139847000,-869.0,0.00023,2]
[426081210,1782139847000,-721.12765534,0.00023098,2]
[426081283,1782139848000,-200.0,0.00024195,2]
[426081285,1782139848000,-906.04900202,0.00024195,2]
[426081286,1782139848000,-2586.85809042,0.00024195,2]
[426081284,1782139848000,-151.0,0.00024195,2]
[426081280,1782139848000,-151.0,0.00024195,2]
[426081275,1782139848000,-485.98,0.0002411,2]
[426081279,1782139848000,-3781.0,0.00024174,2]
[426081277,1782139848000,-52139.13,0.00024174,2]
[426081281,1782139848000,-412.43236871,0.00024195,2]
[426081282,1782139848000,-225.18697532,0.00024195,2]
[426081287,1782139848000,-260.4103811,0.00024195,2]
[426081278,1782139848000,-934.08,0.00024174,2]
[426081288,1782139848000,-200.0,0.00024199,2]
[426081295,1782139848000,-461.73306027,0.00024364,14]
[426081289,1782139848000,-461.73306027,0.00024225,14]
[426081290,1782139848000,-153.91102008,0.00024225,14]
[426081291,1782139848000,-785.0,0.00024262,2]
[426081292,1782139848000,-405.62744005,0.0002431,2]
[426081294,1782139848000,-350.0,0.00024348,5]
[426081299,1782139848000,-3157.7219366,0.00024539,2]
[426081300,1782139848000,-3561.0,0.00024542,2]
[426081298,1782139848000,-461.73306027,0.00024504,30]
[426081297,1782139848000,-620.45,0.000245,7]
[426081304,1782139848000,-150.0,0.00024542,2]
[426081303,1782139848000,-1360.0,0.00024542,2]
[426081301,1782139848000,-1276.0,0.00024542,2]
[426081293,1782139848000,-714.6,0.00024324,2]
[426081276,1782139848000,-350.0,0.00024164,2]
[426081247,1782139848000,-2494.55939288,0.00023647,2]
[426081271,1782139848000,-350.0,0.00024054,2]
[426081296,1782139848000,-501.0,0.00024375,6]
[426081248,1782139848000,-251.11897888,0.00023647,2]
[426081251,1782139848000,-501.0,0.0002375,5]
[426081253,1782139848000,-1784.25,0.00023753,2]
[426081249,1782139848000,-461.73306027,0.00023665,7]
[426081256,1782139848000,-461.73306027,0.00023945,7]
[426081258,1782139848000,-170.0,0.00024,2]
[426081252,1782139848000,-152.0,0.00023752,3]
[426081257,1782139848000,-500.0,0.00024,2]
[426081250,1782139848000,-150.0,0.00023667,2]
[426081255,1782139848000,-821.26435144,0.0002393,2]
[426081254,1782139848000,-461.73306027,0.00023805,7]
[426081274,1782139848000,-684.36,0.0002411,2]
[426081260,1782139848000,-571.0,0.00024,2]
[426081261,1782139848000,-400.0,0.00024,2]
[426081262,1782139848000,-224.768549,0.00024,7]
[426081263,1782139848000,-15000.0,0.00024,2]
[426081265,1782139848000,-188.0,0.00024,2]
[426081264,1782139848000,-227.0,0.00024,2]
[426081266,1782139848000,-1170.0,0.00024,2]
[426081267,1782139848000,-1610.0,0.00024,2]
[426081269,1782139848000,-166.0,0.00024,2]
[426081268,1782139848000,-156.93319847,0.00024,2]
[426081270,1782139848000,-869.0,0.00024,2]
[426081272,1782139848000,-285.0,0.00024065,2]
[426081273,1782139848000,-461.73306027,0.00024085,14]
[426081259,1782139848000,-173.0,0.00024,2]
[426081302,1782139848000,-1229.0,0.00024542,2]
[426081313,1782139848000,-299.11,0.00024658,5]
[426081305,1782139848000,-150.0,0.00024542,2]
[426081335,1782139848000,-223.46214187,0.00024693,7]
[426081336,1782139848000,-150.0,0.000247,2]
[426081340,1782139848000,-200.0,0.00024743,2]
[426081352,1782139848000,-200.0,0.00024955,2]
[426081341,1782139848000,-151.0,0.00024743,2]
[426081346,1782139848000,-150.0,0.0002485,2]
[426081345,1782139848000,-461.73306027,0.00024784,30]
[426081344,1782139848000,-270.0455652,0.00024743,2]
[426081350,1782139848000,-461.73306027,0.00024924,30]
[426081343,1782139848000,-2682.57183977,0.00024743,2]
[426081348,1782139848000,-401.26,0.00024886,7]
[426081342,1782139848000,-906.04900202,0.00024743,2]
[426081351,1782139848000,-785.0,0.00024927,2]
[426081349,1782139848000,-408.37,0.00024886,7]
[426081353,1782139848000,-199.93264929,0.00025,2]
[426081347,1782139848000,-1664.17,0.00024861,7]
[426081355,1782139848000,-15000.0,0.00025,2]